bitfinex-derivatives/quotes_BTCF0:USTF0_20241227
["timestamp","ask_amount","ask_price","bid_price","bid_amount"]
[1735258497527,0.00956704,95754.0,95753.0,0.05370113]
[1735258498119,0.1499,95770.0,95753.0,0.05370113]
[1735258498319,0.14679554,95771.0,95765.0,0.052276]
[1735258498534,0.02192396,95771.0,95765.0,0.052276]
[1735258499427,0.02192396,95771.0,95768.0,0.00141913]
[1735258500420,0.02192396,95771.0,95769.0,0.00141913]
[1735258500831,0.003,95770.0,95769.0,0.00141913]
[1735258501534,0.02192396,95771.0,95769.0,0.00141913]
[1735258501836,0.02392396,95771.0,95769.0,0.00141913]
[1735258502140,0.052273,95770.0,95769.0,0.00341913]
[1735258502446,0.054273,95770.0,95769.0,0.00341913]
[1735258504140,0.052273,95770.0,95769.0,0.00341913]
[1735258504832,0.054273,95770.0,95769.0,0.00341913]
[1735258507132,0.052277,95762.0,95761.0,0.3512]
[1735258507731,0.052287,95745.0,95744.0,0.0538537]
[1735258508139,0.052287,95745.0,95744.0,0.0015667]
[1735258509342,0.053287,95745.0,95744.0,0.0095667]
[1735258509539,0.001,95745.0,95744.0,0.0618537]
[1735258509730,0.15608948,95759.0,95744.0,0.0618537]
[1735258509731,0.15608948,95759.0,95758.0,0.05228]
[1735258510038,0.01096198,95771.0,95770.0,0.052273]
[1735258510632,0.1409,95787.0,95770.0,0.052273]
[1735258510827,0.1409,95787.0,95781.0,0.052267]
[1735258511530,0.052259,95796.0,95781.0,0.052267]
[1735258511731,0.3,95782.0,95744.0,0.0015667]
[1735258511939,0.052283,95752.0,95746.0,0.052286]
[1735258512136,0.052283,95752.0,95744.0,0.0015667]
[1735258512332,0.052283,95751.0,95749.0,0.31186633]
[1735258512839,0.00148,95752.0,95750.0,0.052284]
[1735258513040,0.052269,95779.0,95749.0,0.31186633]
[1735258513229,0.3,95779.0,95754.0,0.052282]
[1735258513430,0.3,95779.0,95752.0,0.052283]
[1735258513629,0.3,95779.0,95744.0,0.34515608]
[1735258513630,0.05228,95758.0,95753.0,0.052282]
[1735258514028,0.1871374,95779.0,95753.0,0.052282]
[1735258514233,0.052281,95756.0,95753.0,0.052282]
[1735258514735,0.052282,95755.0,95753.0,0.052282]
[1735258514936,0.052274,95769.0,95753.0,0.001]
[1735258515139,0.052282,95754.0,95753.0,0.008]
[1735258515539,0.352282,95754.0,95753.0,0.008]
[1735258516037,0.352282,95754.0,95753.0,0.001]
[1735258516345,0.352282,95754.0,95753.0,0.008]
[1735258517341,0.352282,95754.0,95753.0,0.007]
[1735258517548,0.352282,95754.0,95753.0,0.008]
[1735258517845,0.353282,95754.0,95753.0,0.007]
[1735258519238,0.001,95754.0,95753.0,0.059282]
[1735258522944,0.001,95754.0,95753.0,0.08369392]
[1735258523643,0.052271,95775.0,95771.0,0.052272]
[1735258523839,0.352271,95775.0,95772.0,0.1315]
[1735258524644,0.052271,95774.0,95772.0,0.1315]
[1735258525048,0.352271,95774.0,95772.0,0.1315]
[1735258525649,0.052271,95773.0,95772.0,0.1315]
[1735258527151,0.352271,95773.0,95772.0,0.1315]
[1735258527746,0.052277,95764.0,95761.0,0.182878]
[1735258527945,0.052277,95764.0,95762.0,0.052277]
[1735258529448,0.052277,95764.0,95762.0,0.056277]
[1735258530455,0.052277,95764.0,95763.0,0.052277]
[1735258531961,0.052277,95764.0,95763.0,0.055277]
[1735258533154,0.053277,95764.0,95763.0,0.055277]
[1735258534349,0.353277,95764.0,95763.0,0.003]
[1735258534744,0.301,95764.0,95741.0,0.2666]
[1735258535060,0.301,95764.0,95707.0,0.00011844]
[1735258535061,0.052292,95735.0,95727.0,0.05238645]
[1735258535247,0.052295,95730.0,95729.0,0.37532142]
[1735258535444,0.052295,95730.0,95729.0,0.35116]
[1735258536756,0.1871374,95752.0,95729.0,0.36016]
[1735258537058,0.4871374,95752.0,95751.0,0.052283]
[1735258538162,0.3,95752.0,95751.0,0.052283]
[1735258538758,0.301,95752.0,95751.0,0.052283]
[1735258538960,0.302,95752.0,95751.0,0.058283]
[1735258539458,0.301,95752.0,95751.0,0.058283]
[1735258539658,0.301,95752.0,95751.0,0.059283]
[1735258541162,0.001,95752.0,95751.0,0.059283]
[1735258541662,0.053283,95752.0,95751.0,0.059283]
[1735258542160,0.353283,95752.0,95751.0,0.059283]
[1735258542957,0.353283,95752.0,95751.0,0.007]
[1735258543155,0.301,95752.0,95721.0,0.2396]
[1735258543361,0.052295,95730.0,95721.0,0.2396]
[1735258543551,0.052295,95730.0,95725.0,0.052297]
[1735258543754,0.052295,95730.0,95724.0,0.01948695]
[1735258543953,0.3,95730.0,95724.0,0.01948695]
[1735258544157,0.052297,95727.0,95726.0,0.052296]
[1735258544663,0.352297,95727.0,95726.0,0.052296]
[1735258545862,0.353297,95727.0,95726.0,0.008]
[1735258546459,0.353297,95727.0,95726.0,0.011]
[1735258551264,0.353297,95727.0,95726.0,0.008]
[1735258551465,0.052303,95716.0,95715.0,0.00156717]
[1735258552768,0.052303,95715.0,95714.0,0.037]
[1735258553171,0.352303,95715.0,95714.0,0.037]
[1735258555367,0.353303,95715.0,95714.0,0.038]
[1735258555758,0.353303,95715.0,95714.0,0.039]
[1735258561063,0.052314,95695.0,95684.0,0.05232]
[1735258561270,0.052314,95695.0,95682.0,0.1237]
[1735258561473,0.129814,95695.0,95682.0,0.1237]
[1735258561661,0.129814,95695.0,95682.0,0.176021]
[1735258562366,0.129814,95695.0,95694.0,0.00859239]
[1735258562567,0.129814,95695.0,95694.0,0.01059239]
[1735258563672,0.052321,95683.0,95682.0,0.176021]
[1735258564372,0.052321,95683.0,95682.0,0.1237]
[1735258564773,0.053321,95683.0,95682.0,0.1257]
[1735258564978,0.054321,95683.0,95682.0,0.1257]
[1735258565476,0.131821,95683.0,95682.0,0.002]
[1735258567469,0.052326,95673.0,95672.0,0.1182]
[1735258567870,0.129826,95673.0,95672.0,0.1182]
[1735258568669,0.130826,95673.0,95672.0,0.11961625]
[1735258568871,0.131826,95673.0,95672.0,0.11961625]
[1735258571876,0.129826,95673.0,95672.0,0.12061625]
[1735258572076,0.0785,95673.0,95672.0,0.17294325]
[1735258572273,0.12469719,95687.0,95686.0,0.052319]
[1735258572467,0.15632525,95693.0,95692.0,0.052316]
[1735258572667,0.052308,95707.0,95692.0,0.05373225]
[1735258572872,0.27083027,95712.0,95697.0,0.052313]
[1735258573067,0.27227027,95712.0,95697.0,0.052313]
[1735258573265,0.1871374,95704.0,95703.0,0.05231]
[1735258573672,0.1871374,95704.0,95703.0,0.05372625]
[1735258574564,0.005,95704.0,95703.0,0.00141625]
[1735258575074,0.005,95704.0,95702.0,0.05231]
[1735258575271,0.005,95704.0,95690.0,0.07629281]
[1735258575470,0.012,95704.0,95690.0,0.07629281]
[1735258575677,0.05231,95702.0,95686.0,0.052319]
[1735258575875,0.1244,95703.0,95687.0,0.052318]
[1735258576080,0.052319,95687.0,95683.0,0.1291]
[1735258576376,0.1244,95703.0,95682.0,0.00156765]
[1735258576377,0.052321,95683.0,95682.0,0.00156765]
[1735258576572,0.052321,95683.0,95681.0,0.24938394]
[1735258577474,0.052325,95676.0,95671.0,0.1187]
[1735258577682,0.052326,95674.0,95671.0,0.1187]
[1735258577866,0.052326,95673.0,95671.0,0.1187]
[1735258578371,0.052329,95669.0,95666.0,0.121]
[1735258578571,0.052329,95669.0,95666.0,0.17333]
[1735258579273,0.053326,95673.0,95668.0,0.052329]
[1735258579578,0.001,95669.0,95668.0,0.052329]
[1735258580676,0.001,95669.0,95668.0,0.053329]
[1735258581374,0.053329,95669.0,95668.0,0.001]
[1735258583473,0.053329,95669.0,95660.0,0.12862581]
[1735258583474,0.001,95669.0,95660.0,0.12862581]
[1735258583674,0.053328,95669.0,95668.0,0.001]
[1735258585573,0.052333,95661.0,95660.0,0.001]
[1735258586378,0.052336,95655.0,95652.0,0.18715708]
[1735258587083,0.05233,95666.0,95660.0,0.001]
[1735258587278,0.05233,95667.0,95660.0,0.001]
[1735258587880,0.052333,95661.0,95660.0,0.001]
[1735258588877,0.052333,95661.0,95652.0,0.052337]
[1735258588878,0.052337,95654.0,95652.0,0.053337]
[1735258589489,0.052337,95653.0,95652.0,0.053337]
[1735258589785,0.052337,95653.0,95652.0,0.052337]
[1735258590195,0.052338,95652.0,95651.0,0.3514]
[1735258590584,0.01,95724.0,95700.0,8.8e-07]
[1735258590785,0.052338,95652.0,95651.0,0.3514]
[1735258592390,0.053338,95652.0,95651.0,0.3514]
[1735258592591,0.001,95652.0,95651.0,0.404738]
[1735258592792,0.001,95652.0,95651.0,0.053338]
[1735258604596,0.001,95652.0,95650.0,4.66659389]
[1735258604794,0.001,95652.0,95651.0,0.052338]
[1735258605308,0.001,95652.0,95650.0,4.66667389]
[1735258605309,0.052338,95651.0,95650.0,2.56309529]
[1735258605602,0.052338,95651.0,95650.0,1.48076089]
[1735258605790,0.352338,95651.0,95650.0,0.89444535]
[1735258605996,0.352338,95651.0,95650.0,3.4e-07]
[1735258606202,0.052342,95644.0,95637.0,0.31223331]
[1735258606402,0.052345,95638.0,95632.0,0.00056]
[1735258606602,0.052347,95634.0,95633.0,0.41824046]
[1735258607003,0.352347,95634.0,95633.0,0.41824046]
[1735258607806,0.3,95634.0,95625.0,0.09029008]
[1735258608001,0.052356,95618.0,95617.0,0.04276092]
[1735258608205,0.052355,95621.0,95618.0,0.48306136]
[1735258608408,0.28851123,95634.0,95604.0,0.48306136]
[1735258608409,0.052356,95618.0,95604.0,0.48306136]
[1735258608713,0.052352,95626.0,95613.0,0.052359]
[1735258609008,0.052353,95625.0,95614.0,0.48306136]
[1735258609305,0.002,95618.0,95614.0,0.48306136]
[1735258609810,0.002,95618.0,95617.0,0.052357]
[1735258610503,0.1561909,95624.0,95623.0,0.052353]
[1735258610703,0.003,95634.0,95633.0,0.052348]
[1735258610903,0.002,95626.0,95625.0,0.052352]
[1735258611610,0.052354,95623.0,95620.0,0.052355]
[1735258611911,0.052356,95620.0,95618.0,0.61442136]
[1735258612212,0.052356,95620.0,95618.0,0.61386136]
[1735258612718,0.052356,95620.0,95618.0,0.48306136]
[1735258613919,0.054356,95620.0,95618.0,0.48306136]
[1735258614216,0.057356,95620.0,95618.0,0.48306136]
[1735258614816,0.057356,95620.0,95618.0,0.29448561]
[1735258615018,0.005,95620.0,95619.0,0.052356]
[1735258615224,0.005,95620.0,95619.0,0.182056]
[1735258616723,0.005,95620.0,95619.0,0.052356]
[1735258619111,0.305,95620.0,95600.0,5.1006]
[1735258619315,0.052365,95601.0,95600.0,5.05446372]
[1735258619519,0.052365,95601.0,95600.0,4.96770129]
[1735258620831,0.053365,95601.0,95600.0,4.97070129]
[1735258623632,0.052365,95601.0,95600.0,4.96870129]
[1735258624139,0.055365,95601.0,95600.0,4.96770129]
[1735258624725,0.057365,95601.0,95600.0,4.96770129]
[1735258624935,0.059365,95601.0,95600.0,4.96770129]
[1735258625932,0.059365,95601.0,95600.0,4.74764584]
[1735258626522,0.02169571,95609.0,95600.0,4.74764584]
[1735258626838,0.18734392,95617.0,95613.0,0.052359]
[1735258627139,0.18734392,95617.0,95601.0,0.1282]
[1735258627332,0.00157004,95621.0,95620.0,0.052355]
[1735258628442,0.00957004,95621.0,95620.0,0.052355]
[1735258629633,0.01857004,95621.0,95620.0,0.053355]
[1735258631143,0.05235,95630.0,95629.0,0.05235]
[1735258632432,0.06135,95630.0,95629.0,0.05235]
[1735258633029,0.07035,95630.0,95629.0,0.001]
[1735258634838,0.052343,95643.0,95629.0,0.05335]
[1735258635144,0.05235,95630.0,95629.0,0.05335]
[1735258636840,0.05235,95630.0,95629.0,0.001]
[1735258637240,0.06135,95630.0,95629.0,0.002]
[1735258637841,0.052352,95626.0,95625.0,0.2689]
[1735258640044,0.052352,95626.0,95625.0,0.2699]
[1735258640745,0.052352,95626.0,95625.0,0.1345]
[1735258640943,0.052352,95626.0,95625.0,0.001]
[1735258641641,0.053352,95626.0,95625.0,0.001]
[1735258641841,0.053352,95626.0,95600.0,4.52140284]
[1735258641842,0.301,95626.0,95600.0,4.52140284]
[1735258642042,0.052365,95601.0,95600.0,2.64821889]
[1735258642238,0.052365,95601.0,95600.0,1.1414462]
[1735258643537,0.10430303,95601.0,95600.0,1.1414462]
[1735258643738,0.40430303,95601.0,95600.0,1.1414462]
[1735258643942,0.10430303,95601.0,95600.0,1.1414462]
[1735258644339,0.13168381,95601.0,95600.0,1.1414462]
[1735258644537,0.13268381,95601.0,95600.0,1.1414462]
[1735258648946,0.23784964,95601.0,95600.0,1.1414462]
[1735258649746,0.21046886,95601.0,95600.0,1.1414462]
[1735258652049,0.054365,95601.0,95600.0,1.1414462]
[1735258652354,0.054365,95601.0,95600.0,0.76342288]
[1735258653155,0.054365,95601.0,95600.0,0.59931488]
[1735258653449,0.054365,95601.0,95600.0,0.19109288]
[1735258653648,0.054365,95601.0,95600.0,8.8e-07]
[1735258654150,0.052377,95580.0,95579.0,0.1356]
[1735258654753,0.05239,95556.0,95554.0,0.052391]
[1735258654951,0.05239,95557.0,95555.0,0.186491]
[1735258655452,0.05239,95557.0,95556.0,0.05239]
[1735258655650,0.05239,95556.0,95555.0,0.1341]
[1735258656260,0.05239,95556.0,95555.0,0.1431]
[1735258656853,0.05239,95556.0,95555.0,0.1491]
[1735258657555,0.05239,95556.0,95555.0,0.1431]
[1735258657851,0.05239,95556.0,95555.0,0.1471]
[1735258658054,0.05239,95556.0,95555.0,0.013]
[1735258658254,0.05339,95556.0,95555.0,0.013]
[1735258659759,0.052365,95602.0,95564.0,0.052385]
[1735258659760,0.07961588,95575.0,95564.0,0.052385]
[1735258659959,0.05238,95575.0,95565.0,0.1366]
[1735258660145,0.12479944,95574.0,95555.0,0.013]
[1735258660349,0.05239,95556.0,95555.0,0.013]
[1735258660858,0.05239,95556.0,95555.0,0.009]
[1735258661361,0.11473565,95570.0,95551.0,0.251]
[1735258661558,0.052388,95561.0,95560.0,0.052388]
[1735258661747,0.08211384,95576.0,95551.0,0.251]
[1735258662150,0.07658728,95570.0,95551.0,0.251]
[1735258662355,0.07658728,95561.0,95551.0,0.251]
[1735258662555,0.07658728,95570.0,95557.0,0.052389]
[1735258662862,0.052389,95558.0,95557.0,0.052389]
[1735258663358,0.052389,95558.0,95555.0,0.013]
[1735258663359,0.05239,95556.0,95555.0,0.009]
[1735258664355,0.052392,95552.0,95551.0,0.26]
[1735258664862,0.052392,95552.0,95551.0,0.251]
[1735258665561,0.052392,95552.0,95551.0,0.26]
[1735258666758,0.052392,95552.0,95551.0,0.265]
[1735258667257,0.052392,95552.0,95551.0,0.317393]
[1735258667462,0.052392,95552.0,95550.0,2.26029868]
[1735258667463,0.052393,95551.0,95550.0,2.26029868]
[1735258667661,0.052393,95551.0,95550.0,0.78776147]
[1735258667853,0.052393,95551.0,95550.0,1.37676317]
[1735258668450,0.056393,95551.0,95550.0,1.37676317]
[1735258669060,0.059393,95551.0,95550.0,1.37676317]
[1735258669755,0.063393,95551.0,95550.0,1.37676317]
[1735258677966,0.25055581,95551.0,95550.0,1.37676317]
[1735258678867,0.25055581,95551.0,95550.0,1.16976317]
[1735258679065,0.38205581,95551.0,95550.0,1.16976317]
[1735258680267,0.38205581,95551.0,95550.0,0.85519327]
[1735258681162,0.11435581,95551.0,95550.0,0.85519327]
[1735258681659,0.063393,95551.0,95550.0,0.85519327]
[1735258681866,0.21943034,95551.0,95550.0,0.85519327]
[1735258683064,0.063393,95551.0,95550.0,0.85519327]
[1735258684065,0.25063781,95551.0,95550.0,0.85519327]
[1735258685070,0.25063781,95551.0,95550.0,0.66954227]
[1735258685364,0.55063781,95551.0,95550.0,0.1247224]
[1735258685570,0.41435604,95551.0,95550.0,0.1247224]
[1735258686065,0.052401,95536.0,95525.0,0.1322]
[1735258686275,0.052406,95526.0,95525.0,0.1322]
[1735258687162,0.052406,95526.0,95525.0,0.2639]
[1735258687358,0.052406,95526.0,95525.0,0.2699]
[1735258687868,0.053406,95526.0,95525.0,0.2699]
[1735258688262,0.053406,95526.0,95525.0,0.2719]
[1735258688865,0.053406,95526.0,95525.0,0.2699]
[1735258689172,0.053406,95526.0,95525.0,0.2719]
[1735258690467,0.0777872,95526.0,95525.0,0.2719]
[1735258692865,0.0777872,95526.0,95525.0,0.2709]
[1735258693280,0.0767872,95526.0,95525.0,0.0547]
[1735258693566,0.0767872,95526.0,95525.0,0.0597]
[1735258693968,0.12776337,95526.0,95525.0,0.0597]
[1735258696076,0.86166952,95526.0,95525.0,0.0597]
[1735258697563,0.23046952,95526.0,95525.0,0.0597]
[1735258697765,0.18740726,95528.0,95525.0,0.0597]
[1735258697966,0.052407,95526.0,95525.0,0.0597]
[1735258699279,0.052407,95526.0,95525.0,0.0547]
[1735258699578,0.052407,95526.0,95525.0,0.0597]
[1735258705773,0.052407,95526.0,95525.0,0.006]
[1735258706175,0.052408,95524.0,95504.0,0.2699]
[1735258706479,0.052414,95512.0,95504.0,0.2699]
[1735258706674,0.052415,95511.0,95504.0,0.2699]
[1735258706874,0.052408,95524.0,95504.0,0.2699]
[1735258707378,0.052416,95509.0,95504.0,0.2749]
[1735258707577,0.052416,95509.0,95504.0,0.2839]
[1735258708879,0.052417,95508.0,95504.0,0.2839]
[1735258709184,0.052417,95508.0,95504.0,0.2819]
[1735258709384,0.052417,95507.0,95505.0,0.1326]
[1735258709584,0.12532599,95511.0,95510.0,0.052415]
[1735258709882,0.001,95509.0,95508.0,0.052416]
[1735258710384,0.15665749,95516.0,95515.0,0.052413]
[1735258710885,0.18740726,95521.0,95520.0,0.05241]
[1735258711092,0.23981426,95526.0,95521.0,0.052409]
[1735258711470,0.052408,95524.0,95521.0,0.052409]
[1735258712681,0.02122917,95526.0,95521.0,0.054409]
[1735258712875,0.23981226,95529.0,95522.0,0.052409]
[1735258713681,0.001,95524.0,95521.0,0.009]
[1735258713875,0.001,95524.0,95523.0,0.052408]
[1735258714085,0.29193951,95528.0,95525.0,0.052407]
[1735258714280,0.29077951,95528.0,95526.0,0.1366]
[1735258714585,0.29077951,95528.0,95526.0,0.2686]
[1735258714775,0.23837451,95528.0,95526.0,0.2686]
[1735258714975,0.23837451,95528.0,95527.0,0.052406]
[1735258715177,0.23837451,95528.0,95516.0,0.037]
[1735258715378,0.23837451,95528.0,88804.0,0.01232614]
[1735258715379,0.052417,95506.0,95505.0,0.31416021]
[1735258715587,0.052417,95506.0,95505.0,0.17507014]
[1735258716684,0.053417,95506.0,95505.0,0.18207014]
[1735258717286,0.10438425,95506.0,95505.0,0.007]
[1735258717492,0.10427133,95506.0,95505.0,0.009]
[1735258718580,0.05196725,95506.0,95505.0,0.009]
[1735258718783,0.05196725,95506.0,95505.0,0.188918]
[1735258719579,0.001,95506.0,95505.0,0.188918]
[1735258721084,0.001,95506.0,95505.0,0.1365]
[1735258721980,0.001,95506.0,95505.0,0.009]
[1735258722184,0.1043886,95506.0,95505.0,0.009]
[1735258722584,0.05242,95501.0,95500.0,3.17419394]
[1735258722781,0.05242,95501.0,95500.0,3.17363394]
[1735258723798,0.1043906,95501.0,95500.0,3.18363394]
[1735258727398,0.1043906,95501.0,95500.0,1.92030294]
[1735258727599,0.1043906,95501.0,95473.0,0.18823156]
[1735258727600,0.052426,95491.0,95473.0,0.18823156]
[1735258727899,0.07667786,95490.0,95474.0,0.41888042]
[1735258728094,0.05243,95484.0,95474.0,0.60711198]
[1735258728400,0.07667786,95490.0,95474.0,0.60711198]
[1735258728789,0.052433,95478.0,95474.0,0.60711198]
[1735258728991,0.07667786,95490.0,95474.0,0.60711198]
[1735258728992,0.052434,95476.0,95474.0,0.60711198]
[1735258729600,0.052434,95476.0,95474.0,0.41888042]
[1735258730005,0.054434,95476.0,95474.0,0.41888042]
[1735258730506,0.056434,95476.0,95474.0,0.41888042]
[1735258731602,0.052435,95475.0,95474.0,0.41888042]
[1735258732590,0.054435,95475.0,95474.0,0.41888042]
[1735258732891,0.056435,95475.0,95474.0,0.41888042]
[1735258735196,0.056435,95475.0,95474.0,1.91888042]
[1735258735605,0.056435,95475.0,95474.0,0.41888042]
[1735258735907,0.1498988,95475.0,95474.0,0.41888042]
[1735258736998,0.056435,95475.0,95474.0,0.41888042]
[1735258738306,0.1498988,95475.0,95474.0,0.41888042]
[1735258741406,0.0974638,95475.0,95474.0,0.41888042]
[1735258741606,0.1498988,95475.0,95474.0,0.41888042]
[1735258742411,0.004,95475.0,95474.0,0.47131542]
[1735258742923,0.15572467,95484.0,95483.0,0.05243]
[1735258743418,0.15572467,95484.0,95483.0,0.46531042]
[1735258743621,0.18293487,95484.0,95483.0,0.46531042]
[1735258743912,0.0272102,95484.0,95483.0,0.46531042]
[1735258744105,0.09347391,95485.0,95483.0,0.41288042]
[1735258744617,0.09347391,95485.0,95484.0,0.2984]
[1735258745318,0.052428,95487.0,95484.0,0.2984]
[1735258745710,0.004,95485.0,95484.0,0.2984]
[1735258746318,0.01,95485.0,95484.0,0.2984]
[1735258746508,0.006,95485.0,95484.0,0.35083]
[1735258748413,0.006,95485.0,95431.0,0.052458]
[1735258748414,0.052435,95474.0,95431.0,0.052458]
[1735258748609,0.052442,95462.0,95454.0,0.052446]
[1735258748909,0.052444,95457.0,95455.0,0.1683]
[1735258749510,0.07667786,95470.0,95456.0,0.001]
[1735258749711,0.052444,95457.0,95456.0,0.001]
[1735258750618,0.053444,95457.0,95456.0,0.001]
[1735258751216,0.001,95457.0,95455.0,0.1683]
[1735258751421,0.052445,95456.0,95455.0,0.1703]
[1735258752126,0.052445,95456.0,95455.0,0.1683]
[1735258752623,0.053445,95456.0,95455.0,0.1683]
[1735258753016,0.053445,95456.0,95455.0,0.1693]
[1735258756423,0.20916967,95456.0,95455.0,0.1693]
[1735258757928,0.10445189,95456.0,95455.0,0.1693]
[1735258758426,0.13057725,95456.0,95455.0,0.1693]
[1735258759217,0.18756399,95462.0,95455.0,0.1693]
[1735258759426,0.21845304,95474.0,95457.0,0.052444]
[1735258759616,0.21845304,95474.0,95473.0,0.052436]
[1735258759815,0.00157219,95476.0,95460.0,0.07667786]
[1735258760018,0.27610418,95480.0,95460.0,0.07667786]
[1735258760230,0.24966061,95480.0,95479.0,0.052432]
[1735258760722,0.02670027,95486.0,95470.0,0.052437]
[1735258761028,0.07667786,95490.0,95489.0,0.052427]
[1735258761337,0.07667786,95499.0,95490.0,0.052426]
[1735258761516,0.07667786,95500.0,95490.0,0.052426]
[1735258761829,0.07667786,95500.0,95470.0,0.052437]
[1735258762029,0.07667786,95490.0,95489.0,0.052427]
[1735258762329,0.009,95490.0,95476.0,0.052434]
[1735258762625,0.009,95490.0,95477.0,0.1811]
[1735258763128,0.15584781,95493.0,95491.0,0.052426]
[1735258763821,0.15584781,95493.0,95478.0,0.1711]
[1735258764024,0.005,95490.0,95489.0,0.053427]
[1735258764730,0.005,95493.0,95492.0,0.052425]
[1735258765520,0.005,95493.0,95492.0,0.234925]
[1735258765922,0.15584781,95501.0,95492.0,0.1825]
[1735258766118,0.15584781,95501.0,95500.0,0.052421]
[1735258766732,0.15584781,95501.0,95492.0,0.1825]
[1735258766927,0.15584781,95501.0,95494.0,0.052424]
[1735258767135,0.09345535,95503.0,95494.0,0.052424]
[1735258768228,0.009,95501.0,95494.0,0.052424]
[1735258768430,0.009,95501.0,95494.0,0.053424]
[1735258768634,0.09345535,95499.0,95494.0,0.001]
[1735258768930,0.14587635,95499.0,95494.0,0.001]
[1735258769133,0.052422,95498.0,95494.0,0.001]
[1735258769332,0.052423,95496.0,95494.0,0.001]
[1735258769530,0.09345535,95499.0,95470.0,0.18800011]
[1735258769731,0.052427,95488.0,95475.0,0.052434]
[1735258770435,0.052427,95488.0,95476.0,0.052434]
[1735258771029,0.09345535,95487.0,95476.0,0.052434]
[1735258771427,0.32528335,95487.0,95476.0,0.052434]
[1735258771626,0.052429,95486.0,95476.0,0.052434]
[1735258772225,0.09345535,95477.0,95476.0,0.052434]
[1735258772632,0.052434,95476.0,95467.0,0.052439]
[1735258772832,0.09345535,95477.0,95460.0,0.052443]
[1735258773028,0.1678,95476.0,95460.0,0.052443]
[1735258773434,0.052437,95470.0,95460.0,0.052443]
[1735258773628,0.052441,95463.0,95454.0,0.052446]
[1735258774529,0.052442,95462.0,95454.0,0.052446]
[1735258774928,0.052442,95462.0,95454.0,0.054446]
[1735258774929,0.26335535,95461.0,95454.0,0.054446]
[1735258775132,0.26335535,95461.0,95454.0,0.002]
[1735258775735,0.26335535,95461.0,95457.0,0.052444]
[1735258775924,0.26435535,95461.0,95457.0,0.052444]
[1735258776124,0.09345535,95460.0,95454.0,0.002]
[1735258776338,0.09345535,95460.0,95458.0,0.052444]
[1735258777333,0.02874182,95461.0,95459.0,0.1663]
[1735258777534,0.001,95461.0,95460.0,0.052443]
[1735258777739,0.12450354,95470.0,95469.0,0.052438]
[1735258778331,0.12450354,95476.0,95469.0,0.052438]
[1735258778532,0.12450354,95476.0,95475.0,0.052434]
[1735258779434,0.02805426,95481.0,95469.0,0.052438]
[1735258779628,0.00157168,95483.0,95469.0,0.052438]
[1735258779833,0.00157168,95483.0,95481.0,0.052431]
[1735258780841,0.02843427,95483.0,95481.0,0.052431]
[1735258781045,0.01257168,95483.0,95481.0,0.052431]
[1735258782245,0.01257168,95483.0,95482.0,0.052431]
[1735258783439,0.00857168,95483.0,95482.0,0.052431]
[1735258783636,0.01257168,95483.0,95482.0,0.052431]
[1735258787035,0.04046451,95483.0,95482.0,0.052431]
[1735258787239,0.01257168,95483.0,95482.0,0.052431]
[1735258809060,0.01257168,95483.0,95476.0,0.18800011]
[1735258809243,0.06500168,95483.0,95476.0,0.18800011]
[1735258809446,0.06500168,95483.0,95472.0,0.30285068]
[1735258809447,0.267731,95482.0,95477.0,0.18800011]
[1735258809646,0.052433,95478.0,95477.0,0.18800011]
[1735258810845,0.052434,95477.0,95468.0,0.24043811]
[1735258811254,0.052434,95477.0,95468.0,0.18800011]
[1735258811445,0.052435,95474.0,95469.0,0.052438]
[1735258811652,0.052435,95474.0,95468.0,0.18800011]
[1735258812057,0.05599007,95478.0,95468.0,0.18800011]
[1735258812251,0.052436,95472.0,95468.0,0.18800011]
[1735258812452,0.052436,95472.0,95466.0,0.052439]
[1735258812657,0.052436,95472.0,95461.0,0.052442]
[1735258812857,0.07667786,95471.0,95462.0,0.052441]
[1735258813359,0.07667786,95471.0,95463.0,0.052441]
[1735258813659,0.15607622,95466.0,95465.0,0.05244]
[1735258815051,0.15607622,95466.0,95454.0,0.052445]
[1735258815052,0.15607622,95471.0,95455.0,0.18800011]
[1735258815365,0.15607622,95471.0,95469.0,0.052438]
[1735258816364,0.15607622,95472.0,95453.0,0.37670011]
[1735258816554,0.15607622,95472.0,95471.0,0.052437]
[1735258817358,0.15707622,95472.0,95471.0,0.052437]
[1735258817555,0.001,95472.0,95471.0,0.052437]
[1735258817870,0.0287021,95474.0,95471.0,0.052437]
[1735258818158,0.002,95472.0,95471.0,0.052437]
[1735258818762,0.004,95472.0,95471.0,0.052437]
[1735258820151,0.002,95472.0,95471.0,0.052437]
[1735258820859,0.004,95472.0,95471.0,0.052437]
[1735258822572,0.004,95472.0,95456.0,0.18800011]
[1735258822762,0.07667786,95466.0,95463.0,0.052441]
[1735258822962,0.052438,95469.0,95463.0,0.052441]
[1735258823460,0.12462154,95466.0,95464.0,0.05244]
[1735258823657,0.12462154,95466.0,95465.0,0.05244]
[1735258825457,5.4e-07,95466.0,95465.0,0.35244]
[1735258825669,0.18669753,95477.0,95476.0,0.052434]
[1735258826058,0.15576877,95477.0,95476.0,0.052434]
[1735258826261,0.21783293,95496.0,95476.0,0.3]
[1735258826462,0.21783293,95496.0,95495.0,0.052423]
[1735258827471,0.24634421,95496.0,95495.0,0.052423]
[1735258827659,0.03751128,95496.0,95495.0,0.052423]
[1735258829065,0.04351128,95496.0,95482.0,0.05243]
[1735258829267,0.04351128,95496.0,95487.0,0.052428]
[1735258829774,0.052424,95493.0,95481.0,0.18800011]
[1735258829972,0.052426,95490.0,95481.0,0.18800011]
[1735258830158,0.2048,95492.0,95481.0,0.18800011]
[1735258830365,0.052431,95482.0,95475.0,0.18800011]
[1735258830670,0.07667786,95491.0,95475.0,0.18800011]
[1735258830671,0.2038,95481.0,95475.0,0.18800011]
[1735258830863,0.052432,95479.0,95475.0,0.18800011]